bitfinex-derivatives/quotes_BTCF0:USTF0_20250101
["timestamp","ask_amount","ask_price","bid_price","bid_amount"]
[1735743648954,0.16932891,94206.0,94205.0,0.01257347]
[1735743649163,0.16632891,94206.0,94205.0,0.01257347]
[1735743649360,0.16932891,94206.0,94205.0,0.01257347]
[1735743649569,0.17032891,94206.0,94205.0,0.01257347]
[1735743649871,0.17032891,94206.0,94205.0,0.06575247]
[1735743650455,0.11715091,94206.0,94205.0,0.06575247]
[1735743652061,0.10915091,94206.0,94205.0,0.06475247]
[1735743652259,0.10915091,94206.0,94205.0,0.06575247]
[1735743652260,0.11715091,94206.0,94205.0,0.06575247]
[1735743653257,0.11615091,94206.0,94205.0,0.06575247]
[1735743654661,0.11315091,94206.0,94205.0,0.06575247]
[1735743654864,0.11615091,94206.0,94205.0,0.06575247]
[1735743655558,0.008,94206.0,94205.0,0.01257347]
[1735743655764,0.16732891,94206.0,94205.0,0.054179]
[1735743656161,0.16632891,94206.0,94205.0,0.001]
[1735743657271,0.11415091,94206.0,94200.0,0.053181]
[1735743657469,0.053181,94201.0,94200.0,0.053181]
[1735743657662,0.053181,94201.0,94197.0,0.01134617]
[1735743657663,0.053182,94200.0,94197.0,0.01134617]
[1735743657863,0.053182,94200.0,94198.0,0.053183]
[1735743658169,0.10615373,94199.0,94198.0,0.053183]
[1735743659379,0.10715373,94199.0,94198.0,0.053183]
[1735743665163,0.10715373,94199.0,94192.0,0.01133354]
[1735743665370,0.053184,94196.0,94186.0,0.053189]
[1735743665577,0.053184,94196.0,94195.0,0.053184]
[1735743666077,0.15935125,94196.0,94185.0,0.37203416]
[1735743666373,0.15935125,94196.0,94194.0,0.053185]
[1735743666576,0.053187,94191.0,94189.0,0.053188]
[1735743667167,0.10616274,94190.0,94189.0,0.053188]
[1735743667679,0.053189,94188.0,94186.0,0.053189]
[1735743667881,0.052189,94188.0,94186.0,0.053189]
[1735743668180,0.053189,94187.0,94186.0,0.053189]
[1735743668370,0.15935794,94187.0,94186.0,0.053189]
[1735743668570,0.15935794,94187.0,94185.0,0.37503416]
[1735743668571,0.053189,94186.0,94185.0,0.01423416]
[1735743668775,0.06771621,94186.0,94185.0,0.01123416]
[1735743668982,0.053193,94180.0,94177.0,0.053194]
[1735743669477,0.051193,94180.0,94177.0,0.053194]
[1735743669782,0.10617232,94179.0,94177.0,0.053194]
[1735743669970,0.10617232,94179.0,94177.0,0.06485967]
[1735743670176,0.10617232,94179.0,94178.0,0.0075926]
[1735743670968,0.10617232,94179.0,94178.0,0.0607866]
[1735743671173,0.10517232,94179.0,94178.0,0.4215866]
[1735743671380,0.053179,94204.0,94200.0,0.053182]
[1735743671681,0.053179,94204.0,94201.0,0.053181]
[1735743671885,0.05318,94202.0,94201.0,0.053181]
[1735743672583,0.15933485,94202.0,94201.0,0.053181]
[1735743673278,0.15933485,94202.0,94192.0,0.3608]
[1735743673476,0.15933485,94202.0,94201.0,0.053181]
[1735743675377,0.16133485,94202.0,94201.0,0.053181]
[1735743675573,0.16733485,94202.0,94201.0,0.053181]
[1735743677581,0.11415485,94202.0,94201.0,0.053181]
[1735743678378,0.053171,94220.0,94217.0,0.053172]
[1735743679184,0.10774803,94218.0,94217.0,0.053172]
[1735743680174,0.11674803,94218.0,94217.0,0.054172]
[1735743680980,0.12074803,94218.0,94217.0,0.054172]
[1735743682787,0.12074803,94218.0,94217.0,0.06541905]
[1735743683789,0.17391903,94218.0,94217.0,0.06541905]
[1735743683983,0.12074803,94218.0,94217.0,0.06541905]
[1735743686493,0.11915542,94218.0,94217.0,0.06541905]
[1735743687082,0.11015542,94218.0,94217.0,0.06541905]
[1735743687287,0.11415542,94218.0,94217.0,0.06541905]
[1735743688394,0.11015542,94218.0,94217.0,0.06541905]
[1735743688596,0.11415542,94218.0,94217.0,0.06541905]
[1735743706405,0.11415542,94218.0,94217.0,0.42621905]
[1735743707298,0.008,94218.0,94217.0,0.42621905]
[1735743710700,0.150362,94235.0,94233.0,0.053163]
[1735743711107,0.150362,94235.0,94230.0,0.3608]
[1735743711108,0.10613739,94234.0,94230.0,0.3608]
[1735743711706,0.15930039,94234.0,94233.0,0.053163]
[1735743711904,0.15930039,94234.0,94233.0,0.054163]
[1735743712502,0.15930039,94234.0,94233.0,0.053163]
[1735743712702,0.11213739,94234.0,94233.0,0.054163]
[1735743714205,0.11213739,94234.0,94233.0,0.06951691]
[1735743721211,0.16529939,94234.0,94233.0,0.01635391]
[1735743722821,0.053164,94231.0,94230.0,0.3608]
[1735743723408,0.15928337,94231.0,94230.0,0.3608]
[1735743724018,0.16528337,94231.0,94230.0,0.3608]
[1735743724207,0.16528337,94231.0,94230.0,0.37519033]
[1735743725718,0.16628337,94231.0,94230.0,0.37619033]
[1735743726811,0.16628337,94231.0,94230.0,0.42935533]
[1735743730112,0.11311937,94231.0,94230.0,0.42935533]
[1735743736716,0.16431937,94231.0,94230.0,0.42935533]
[1735743738926,0.16031937,94231.0,94230.0,0.42935533]
[1735743739125,0.16031937,94231.0,94230.0,0.42835533]
[1735743739511,0.10911937,94231.0,94230.0,0.42835533]
[1735743739716,0.10711937,94231.0,94230.0,0.42835533]
[1735743739926,0.10911937,94231.0,94230.0,0.42835533]
[1735743740425,0.10811937,94231.0,94230.0,0.43135533]
[1735743740626,0.10611937,94231.0,94230.0,0.43235533]
[1735743741121,0.0972,94235.0,94234.0,0.053162]
[1735743741523,0.20332275,94235.0,94234.0,0.053162]
[1735743742723,0.20432275,94235.0,94234.0,0.053162]
[1735743743120,0.20332275,94235.0,94234.0,0.053162]
[1735743744831,0.20432275,94235.0,94234.0,0.053162]
[1735743745323,0.20332275,94235.0,94234.0,0.053162]
[1735743745629,0.20432275,94235.0,94234.0,0.053162]
[1735743747533,0.20532275,94235.0,94234.0,0.053162]
[1735743748529,0.20432275,94235.0,94234.0,0.053162]
[1735743749236,0.20332275,94235.0,94234.0,0.053162]
[1735743750320,0.20432275,94235.0,94234.0,0.053162]
[1735743753529,0.20432275,94235.0,94230.0,0.37519033]
[1735743753730,0.053164,94231.0,94230.0,0.37519033]
[1735743753931,0.053164,94231.0,94230.0,0.01439033]
[1735743754126,0.053165,94230.0,94229.0,0.053165]
[1735743754835,0.053165,94230.0,94229.0,0.07093258]
[1735743755136,0.15928549,94230.0,94229.0,0.07093258]
[1735743755833,0.16028549,94230.0,94229.0,0.07093258]
[1735743756028,0.16028549,94230.0,94226.0,0.3608]
[1735743756029,0.053166,94227.0,94226.0,0.3608]
[1735743756725,0.15928987,94227.0,94226.0,0.3608]
[1735743757631,0.16128987,94227.0,94226.0,0.3608]
[1735743758123,0.053168,94224.0,94223.0,0.01751459]
[1735743758330,0.05317,94220.0,94219.0,0.3608]
[1735743758727,0.15929725,94220.0,94219.0,0.3608]
[1735743760229,0.16029725,94220.0,94219.0,0.3608]
[1735743760428,0.16129725,94220.0,94219.0,0.3608]
[1735743760934,0.10712725,94220.0,94219.0,0.413971]
[1735743761239,0.10812725,94220.0,94219.0,0.413971]
[1735743762538,0.10712725,94220.0,94219.0,0.413971]
[1735743762733,0.10712725,94220.0,94219.0,0.43800489]
[1735743763134,0.10612725,94220.0,94219.0,0.43800489]
[1735743763331,0.10712725,94220.0,94219.0,0.43800489]
[1735743763529,0.001,94220.0,94219.0,0.43800489]
[1735743763730,0.10713514,94220.0,94219.0,0.43800489]
[1735743764138,0.10613514,94220.0,94219.0,0.43900489]
[1735743764537,0.053165,94229.0,94226.0,0.053166]
[1735743764728,0.053165,94229.0,94228.0,0.3608]
[1735743765132,0.053165,94229.0,94228.0,0.3108]
[1735743765331,0.15929113,94229.0,94228.0,0.3108]
[1735743766134,0.16029113,94229.0,94228.0,0.3108]
[1735743766539,0.10712613,94229.0,94228.0,0.363966]
[1735743767339,0.10812613,94229.0,94228.0,0.363966]
[1735743768238,0.10712613,94229.0,94228.0,0.363966]
[1735743769043,0.10712613,94229.0,94228.0,0.364966]
[1735743770143,0.10612613,94229.0,94228.0,0.365966]
[1735743770546,0.103062,94235.0,94233.0,0.053163]
[1735743770846,0.106125,94234.0,94233.0,0.053163]
[1735743771147,0.103062,94235.0,94233.0,0.053163]
[1735743771346,0.106125,94234.0,94233.0,0.053163]
[1735743772640,0.107125,94234.0,94233.0,0.053163]
[1735743773044,0.108125,94234.0,94233.0,0.053163]
[1735743774152,0.053165,94230.0,94228.0,0.363966]
[1735743774339,0.0456,94229.0,94228.0,0.363966]
[1735743774537,0.0456,94229.0,94228.0,0.3108]
[1735743774732,0.15171937,94229.0,94219.0,0.38443389]
[1735743775039,0.20488537,94229.0,94219.0,0.38283389]
[1735743775243,0.20488537,94229.0,94219.0,0.45399279]
[1735743775838,0.20488537,94229.0,94219.0,0.38583389]
[1735743776232,0.053167,94226.0,94219.0,0.38583389]
[1735743776436,0.053168,94224.0,94219.0,0.38483389]
[1735743776838,0.10613007,94223.0,94219.0,0.38483389]
[1735743777037,0.10613007,94223.0,94219.0,0.38583389]
[1735743778043,0.10613007,94223.0,94219.0,0.38383389]
[1735743778639,0.10713007,94223.0,94219.0,0.38383389]
[1735743778942,0.10713007,94223.0,94219.0,0.38283389]
[1735743779245,0.10813007,94223.0,94219.0,0.38283389]
[1735743781242,0.10713007,94223.0,94219.0,0.38283389]
[1735743781447,0.10813007,94223.0,94219.0,0.38283389]
[1735743781653,0.10713007,94223.0,94219.0,0.38283389]
[1735743781849,0.10813007,94223.0,94219.0,0.38283389]
[1735743782353,0.10713007,94223.0,94219.0,0.38283389]
[1735743783548,0.10613007,94223.0,94219.0,0.38283389]
[1735743783745,0.3608,94220.0,94219.0,0.02203389]
[1735743783944,0.053173,94216.0,94209.0,0.23612871]
[1735743784149,0.053175,94213.0,94209.0,0.23612871]
[1735743784338,0.0478,94212.0,94209.0,0.23612871]
[1735743784948,0.10613514,94211.0,94209.0,0.23612871]
[1735743785145,0.10613514,94211.0,94209.0,0.2648498]
[1735743785547,0.10613514,94211.0,94209.0,0.2598498]
[1735743786845,0.10613514,94211.0,94209.0,0.2578498]
[1735743793456,0.10613514,94211.0,94209.0,0.3110258]
[1735743793852,0.3608,94217.0,94214.0,0.053173]
[1735743794054,0.10614584,94216.0,94214.0,0.053173]
[1735743794557,0.3608,94217.0,94214.0,0.053173]
[1735743794753,0.10614584,94215.0,94214.0,0.053173]
[1735743794952,0.3608,94217.0,94214.0,0.053173]
[1735743795358,0.10614077,94215.0,94214.0,0.053173]
[1735743795559,0.3608,94217.0,94214.0,0.053173]
[1735743795760,0.001,94216.0,94214.0,0.053173]
[1735743796359,0.10614021,94215.0,94214.0,0.053173]
[1735743798558,0.10714021,94215.0,94214.0,0.053173]
[1735743799864,0.10814021,94215.0,94209.0,0.2578498]
[1735743800170,0.053175,94212.0,94209.0,0.2578498]
[1735743800462,0.0463,94211.0,94209.0,0.2578498]
[1735743801163,0.10614077,94210.0,94209.0,0.2578498]
[1735743802871,0.10614077,94210.0,94209.0,0.3110268]
[1735743805269,0.15931677,94210.0,94209.0,0.23612871]
[1735743807775,0.15931677,94210.0,94209.0,0.28930571]
[1735743810973,0.10614077,94210.0,94209.0,0.28930571]
[1735743811577,0.413973,94216.0,94209.0,0.23612871]
[1735743811787,0.413973,94216.0,94215.0,0.053173]
[1735743812288,0.413973,94216.0,94209.0,0.23612871]
[1735743812486,0.52011264,94216.0,94209.0,0.23612871]
[1735743812883,0.053174,94214.0,94213.0,0.053174]
[1735743813581,0.15931702,94214.0,94213.0,0.053174]
[1735743814591,0.16031702,94214.0,94213.0,0.053174]
[1735743814786,0.053174,94214.0,94213.0,0.053173]
[1735743814985,0.1593159,94214.0,94213.0,0.053173]
[1735743815688,0.1603159,94214.0,94213.0,0.053173]
[1735743818689,0.1071419,94214.0,94213.0,0.053173]
[1735743820693,0.1061419,94214.0,94213.0,0.053173]
[1735743820988,0.3608,94235.0,94210.0,0.4069]
[1735743821202,0.053161,94236.0,94233.0,0.053163]
[1735743821389,0.053161,94236.0,94234.0,0.053162]
[1735743821784,0.1061419,94235.0,94234.0,0.053162]
[1735743822694,0.00159203,94240.0,94237.0,0.05316]
[1735743823195,0.10611824,94239.0,94237.0,0.05316]
[1735743824194,0.05316,94238.0,94237.0,0.05316]
[1735743824782,0.1592743,94238.0,94237.0,0.05316]
[1735743825192,0.1592743,94238.0,94237.0,0.07117358]
[1735743826789,0.1602743,94238.0,94237.0,0.07117358]
[1735743827599,0.1071143,94238.0,94237.0,0.07117358]
[1735743828601,0.05315,94256.0,94255.0,0.053151]
[1735743828795,0.053147,94261.0,94256.0,0.05315]
[1735743829193,0.0871,94265.0,94256.0,0.05315]
[1735743829499,0.053148,94260.0,94251.0,0.3608]
[1735743829703,0.053148,94260.0,94257.0,0.053149]
[1735743829998,0.053147,94262.0,94259.0,0.053148]
[1735743830195,0.053148,94260.0,94259.0,0.053148]
[1735743830392,0.053148,94260.0,94251.0,0.3608]
[1735743830593,0.053149,94258.0,94256.0,0.05315]
[1735743830796,0.053149,94258.0,94257.0,0.053149]
[1735743831696,0.15924135,94258.0,94257.0,0.054149]
[1735743831896,0.00130631,94258.0,94257.0,0.054149]
[1735743832092,0.00130631,94258.0,94257.0,0.053149]
[1735743832294,0.00130631,94258.0,94257.0,0.054149]
[1735743832704,0.00630631,94258.0,94257.0,0.054149]
[1735743832894,0.05945531,94258.0,94257.0,0.054149]
[1735743834697,0.00630631,94258.0,94257.0,0.054149]
[1735743837003,0.05945531,94258.0,94257.0,0.054149]
[1735743838006,0.00630631,94258.0,94257.0,0.054149]
[1735743839011,0.005,94258.0,94257.0,0.054149]
[1735743843608,0.0459,94284.0,94257.0,0.301]
[1735743843799,0.00159164,94285.0,94275.0,0.053139]
[1735743844001,0.053134,94284.0,94274.0,0.47079489]
[1735743844204,0.15922635,94284.0,94275.0,0.0433]
[1735743844806,0.15922635,94284.0,94282.0,0.3608]
[1735743845205,0.0434,94294.0,94283.0,0.053135]
[1735743845513,0.2,94300.0,94299.0,0.053126]
[1735743846108,0.30606365,94300.0,94299.0,0.053126]
[1735743846507,0.2,94300.0,94299.0,0.053126]
[1735743847218,0.3060451,94300.0,94299.0,0.053126]
[1735743847514,0.2,94300.0,94299.0,0.054126]
[1735743847812,0.3060451,94300.0,94299.0,0.054126]
[1735743848011,0.3060451,94300.0,94299.0,0.053126]
[1735743848213,0.3060451,94300.0,94299.0,0.054126]
[1735743848406,0.15013,94300.0,94299.0,0.07247079]
[1735743848728,0.15313,94300.0,94299.0,0.07247079]
[1735743849605,0.15313,94300.0,94299.0,0.37247079]
[1735743850016,0.3608,94316.0,94299.0,0.37247079]
[1735743850318,0.0435,94324.0,94323.0,0.053112]
[1735743850516,0.0435,94324.0,94323.0,0.413912]
[1735743850906,0.1495451,94324.0,94323.0,0.413912]
[1735743851303,0.1495451,94324.0,94323.0,0.35408229]
[1735743852015,0.1495451,94324.0,94323.0,0.40819429]
[1735743852411,0.1505451,94324.0,94323.0,0.40819429]
[1735743853816,0.1505451,94324.0,94323.0,0.42576818]
[1735743855208,0.1505451,94324.0,94323.0,0.01857389]
[1735743855414,0.1505451,94324.0,94311.0,0.3608]
[1735743855721,0.3608,94315.0,94295.0,0.413928]
[1735743856021,0.053124,94302.0,94300.0,0.10847489]
[1735743856212,0.0437,94301.0,94298.0,0.053126]
[1735743856615,0.14973891,94301.0,94298.0,0.053126]
[1735743857214,0.14973891,94301.0,94299.0,0.053126]
[1735743858625,0.0427,94300.0,94299.0,0.053126]
[1735743858824,0.0427,94300.0,94299.0,0.055126]
[1735743859220,0.14874453,94300.0,94299.0,0.057126]
[1735743859927,0.14874453,94300.0,94299.0,0.002]
[1735743860226,0.20186953,94300.0,94299.0,0.001]
[1735743860426,0.20186953,94300.0,94299.0,0.002]
[1735743860619,0.20193453,94300.0,94299.0,0.002]
[1735743860814,0.20193453,94300.0,94299.0,0.001]
[1735743861730,0.05313,94291.0,94290.0,0.01750927]
[1735743861918,0.05313,94291.0,94288.0,0.00156]
[1735743861919,0.053131,94289.0,94280.0,0.47086569]
[1735743862119,0.053131,94289.0,94280.0,0.48729051]
[1735743862322,0.0452,94288.0,94280.0,0.48729051]
[1735743863022,0.043765,94300.0,94280.0,0.48729051]
[1735743863230,0.053128,94295.0,94290.0,0.46927489]
[1735743863614,0.15126253,94299.0,94290.0,0.46927489]
[1735743863818,0.05313,94292.0,94290.0,0.3608]
[1735743864620,0.10605466,94291.0,94290.0,0.3608]
[1735743866315,0.052132,94288.0,94281.0,0.053136]
[1735743866827,0.053133,94287.0,94281.0,0.053136]
[1735743867022,0.10605522,94287.0,94280.0,0.3623908]
[1735743867223,0.053136,94282.0,94280.0,0.01774909]
[1735743867428,0.0445,94281.0,94280.0,0.01774909]
[1735743867830,0.15056253,94281.0,94280.0,0.01774909]
[1735743868018,0.14956253,94281.0,94280.0,0.01774909]
[1735743868830,0.14956253,94281.0,94280.0,0.01874909]
[1735743869230,0.20269853,94281.0,94280.0,0.0025908]
[1735743869422,0.20269853,94281.0,94280.0,0.0015908]
[1735743870023,0.20369853,94281.0,94280.0,0.0015908]
[1735743870634,0.20469853,94281.0,94280.0,0.0015908]
[1735743871425,0.15156253,94281.0,94274.0,0.01618961]
[1735743871620,0.053139,94275.0,94268.0,0.3608]
[1735743871834,0.05314,94274.0,94272.0,0.053141]
[1735743872137,0.053137,94279.0,94273.0,0.05314]
[1735743872525,0.10607491,94278.0,94274.0,0.001]
[1735743873432,0.10607491,94278.0,94274.0,0.05414]
[1735743873832,0.10607491,94278.0,94274.0,0.05314]
[1735743874533,0.10607491,94278.0,94274.0,0.05414]
[1735743874932,0.10607491,94278.0,94275.0,0.053139]
[1735743876231,0.10607491,94278.0,94275.0,0.054139]
[1735743876437,0.10607491,94278.0,94275.0,0.001]
[1735743876635,0.10607491,94278.0,94277.0,0.053138]
[1735743876827,0.0435,94281.0,94280.0,0.053136]
[1735743877032,0.0431,94288.0,94287.0,0.053133]
[1735743877234,0.0431,94288.0,94281.0,0.053136]
[1735743877430,0.14915859,94288.0,94277.0,0.3608]
[1735743877631,0.053133,94287.0,94282.0,0.053135]
[1735743878028,0.053133,94287.0,94277.0,0.3608]
[1735743878527,0.15919159,94286.0,94283.0,0.053134]
[1735743878738,0.15919159,94286.0,94277.0,0.3608]
[1735743878935,0.053133,94286.0,94284.0,0.053134]
[1735743879234,0.10606478,94285.0,94284.0,0.003134]
[1735743879438,0.10606478,94285.0,94277.0,0.3618]
[1735743879652,0.10606478,94285.0,94284.0,0.053134]
[1735743880939,0.10806478,94285.0,94284.0,0.053134]
[1735743882431,0.10806478,94285.0,94284.0,0.051134]
[1735743882930,0.16119878,94285.0,94284.0,0.051134]
[1735743883836,0.16219878,94285.0,94284.0,0.051134]
[1735743886233,0.16219878,94285.0,94284.0,0.07155796]
[1735743888635,0.16219878,94285.0,94284.0,0.02042396]
[1735743888854,0.10906478,94285.0,94277.0,0.3608]
[1735743889046,0.053136,94283.0,94282.0,0.053135]
[1735743889336,0.003,94285.0,94277.0,0.3608]
[1735743889543,0.053138,94278.0,94277.0,0.413938]
[1735743889934,0.053138,94278.0,94277.0,0.414938]
[1735743890234,0.15920222,94278.0,94277.0,0.414938]
[1735743890638,0.15920222,94278.0,94277.0,0.413938]
[1735743890929,0.15920222,94278.0,94277.0,0.38126313]
[1735743891239,0.16020222,94278.0,94277.0,0.38126313]
[1735743892238,0.16020222,94278.0,94277.0,0.02046313]
[1735743892435,0.053143,94268.0,94267.0,0.3608]
[1735743892836,0.053143,94268.0,94267.0,0.3815311]
[1735743893036,0.15921284,94268.0,94267.0,0.3815311]
[1735743893644,0.053148,94260.0,94259.0,0.3608]
[1735743893834,0.10606984,94268.0,94253.0,0.00159133]
[1735743893835,0.3608,94263.0,94253.0,0.00159133]
[1735743894042,0.052151,94254.0,94253.0,0.00159133]
[1735743894648,0.052151,94254.0,94250.0,0.02028585]
[1735743894945,0.051154,94249.0,94248.0,0.3608]
[1735743895144,0.0385,94253.0,94239.0,0.19031962]
[1735743895348,0.053158,94243.0,94239.0,0.19031962]
[1735743895538,0.053159,94240.0,94239.0,0.02034975]
[1735743895740,0.053159,94240.0,94238.0,0.3608]
[1735743896452,0.10210248,94239.0,94238.0,0.3608]
[1735743896950,0.10210248,94239.0,94238.0,0.38116212]
[1735743897240,0.09610248,94239.0,94238.0,0.38116212]
[1735743897443,0.09610248,94239.0,94238.0,0.38616212]
[1735743897842,0.09610248,94239.0,94238.0,0.39516212]
[1735743898742,0.09610248,94239.0,94238.0,0.39416212]
[1735743899735,0.09610248,94239.0,94238.0,0.03336212]
[1735743907150,0.09610248,94239.0,94238.0,0.08652212]
[1735743908942,0.09610248,94239.0,94238.0,0.03336212]
[1735743909147,0.14926248,94239.0,94238.0,0.03336212]
[1735743910156,0.09610248,94239.0,94238.0,0.03336212]
[1735743910349,0.09610248,94239.0,94238.0,0.08652212]
[1735743911049,0.09610248,94239.0,94238.0,0.03336212]
[1735743911250,0.09610248,94239.0,94238.0,0.08652212]
[1735743912860,0.14926248,94239.0,94238.0,0.03336212]
[1735743913344,0.14926248,94239.0,94238.0,0.013]
[1735743913546,0.14926248,94239.0,94224.0,0.3608]
[1735743913748,0.053167,94226.0,94221.0,0.054769]
[1735743913947,0.0404,94225.0,94221.0,0.07397744]
[1735743914157,0.0404,94225.0,94223.0,0.053168]
[1735743914361,0.0404,94225.0,94224.0,0.053168]
[1735743914755,0.0404,94225.0,94224.0,0.060168]
[1735743914949,0.14653007,94225.0,94224.0,0.060168]
[1735743916450,0.14753007,94225.0,94224.0,0.053168]
[1735743917046,0.14853007,94225.0,94224.0,0.053168]
[1735743917246,0.10813007,94225.0,94224.0,0.053168]
[1735743917450,0.10813007,94225.0,94224.0,0.059168]
[1735743919054,0.10813007,94225.0,94224.0,0.099868]
[1735743919253,0.10813007,94225.0,94224.0,0.093868]
[1735743919254,0.10713007,94225.0,94224.0,0.093868]
[1735743919567,0.10713007,94225.0,94224.0,0.094868]
[1735743919956,0.10613007,94225.0,94224.0,0.094868]
[1735743920155,0.10613007,94225.0,94224.0,0.096868]
[1735743920360,0.039,94237.0,94234.0,0.053162]
[1735743920864,0.039,94237.0,94224.0,0.0437]
[1735743920865,0.1061295,94236.0,94224.0,0.0437]
[1735743921057,0.1061295,94236.0,94235.0,0.053162]
[1735743921265,0.05315,94256.0,94251.0,0.053153]
[1735743921464,0.0395,94259.0,94252.0,0.3608]
[1735743922053,0.14461712,94253.0,94252.0,0.3608]
[1735743922459,0.10611712,94253.0,94252.0,0.3608]
[1735743922964,0.05315,94256.0,94252.0,0.38706572]
[1735743923166,0.05315,94256.0,94252.0,0.44021772]
[1735743923460,0.002,94253.0,94252.0,0.44021772]
[1735743924366,0.10609629,94253.0,94252.0,0.44021772]
[1735743924551,0.11209629,94253.0,94252.0,0.44121772]
[1735743924754,0.006,94253.0,94252.0,0.44121772]
[1735743925063,0.11209798,94253.0,94252.0,0.44121772]
[1735743925656,0.006,94253.0,94252.0,0.44121772]
[1735743925857,0.008,94253.0,94252.0,0.44121772]
[1735743926774,0.006,94253.0,94252.0,0.44121772]
[1735743926973,0.006,94253.0,94252.0,0.44221772]
[1735743927854,0.053144,94267.0,94252.0,0.44121772]
[1735743928060,0.053144,94267.0,94260.0,0.053148]
[1735743928264,0.053146,94264.0,94260.0,0.053148]
[1735743928863,0.1060856,94263.0,94260.0,0.053148]
[1735743929570,0.1060856,94263.0,94260.0,0.054148]
[1735743929771,0.053147,94262.0,94260.0,0.001]
[1735743929969,0.053147,94262.0,94252.0,0.38706572]
[1735743929970,0.053152,94253.0,94252.0,0.38706572]
[1735743930762,0.15924998,94253.0,94252.0,0.38706572]
[1735743931164,0.10609798,94253.0,94252.0,0.44021772]
[1735743931567,0.053148,94259.0,94252.0,0.44021772]
[1735743931768,0.10609798,94258.0,94252.0,0.44021772]
[1735743932058,0.053148,94259.0,94252.0,0.44021772]
[1735743932059,0.002,94253.0,94252.0,0.44021772]
[1735743932470,0.003,94253.0,94252.0,0.44021772]
[1735743932659,0.001,94253.0,94252.0,0.44221772]
[1735743933158,0.10709798,94253.0,94252.0,0.44021772]
[1735743933367,0.10609798,94253.0,94252.0,0.44121772]
[1735743933764,0.0383,94268.0,94252.0,0.44121772]
[1735743933967,0.10609798,94253.0,94252.0,0.44121772]
[1735743934471,0.053151,94255.0,94252.0,0.44121772]
[1735743934673,0.10609798,94253.0,94252.0,0.44121772]
[1735743934873,0.053151,94255.0,94252.0,0.44121772]
[1735743935175,0.10609798,94253.0,94252.0,0.44121772]
[1735743935483,0.0383,94268.0,94252.0,0.44121772]
[1735743935484,0.053148,94260.0,94252.0,0.44121772]
[1735743935664,0.0383,94268.0,94252.0,0.44121772]
[1735743935865,0.10609798,94254.0,94252.0,0.44121772]
[1735743936174,0.001,94253.0,94252.0,0.44121772]
[1735743936577,0.05315,94257.0,94253.0,0.053152]
[1735743937164,0.10609798,94256.0,94253.0,0.053152]
[1735743938178,0.10609798,94256.0,94253.0,0.054152]
[1735743939665,0.15924798,94256.0,94253.0,0.054152]
[1735743940168,0.05315,94256.0,94254.0,0.053151]
[1735743940370,0.10609573,94255.0,94254.0,0.053151]
[1735743942568,0.10709573,94255.0,94254.0,0.053151]
[1735743943068,0.10709573,94255.0,94254.0,0.054151]
[1735743943967,0.10709573,94255.0,94254.0,0.053151]
[1735743945673,0.10609573,94255.0,94254.0,0.053151]
[1735743945873,0.10709573,94255.0,94254.0,0.053151]
[1735743946074,0.001,94255.0,94254.0,0.053151]
[1735743946270,0.10709573,94255.0,94254.0,0.053151]
[1735743946782,0.001,94255.0,94254.0,0.053151]
[1735743947080,0.10709573,94255.0,94254.0,0.053151]
[1735743956280,0.10709573,94255.0,94252.0,0.02626572]
[1735743956474,0.037,94254.0,94233.0,0.19031962]
[1735743956680,0.0711083,94250.0,94233.0,0.19031962]
[1735743956877,0.053157,94244.0,94239.0,0.053159]
[1735743957386,0.052157,94244.0,94239.0,0.053159]
[1735743957680,0.10611036,94243.0,94239.0,0.053159]
[1735743957884,0.10611036,94243.0,94234.0,0.0247683]
[1735743957885,0.053158,94242.0,94240.0,0.053159]
[1735743958374,0.0394,94241.0,94240.0,0.053159]
[1735743958581,0.14551036,94241.0,94240.0,0.053159]
[1735743958883,0.053159,94240.0,94239.0,0.001]
[1735743959082,0.053162,94235.0,94234.0,0.0247683]
[1735743959287,0.052162,94235.0,94234.0,0.0247683]
[1735743959492,0.15827292,94235.0,94234.0,0.0247683]
[1735743959682,0.10611092,94235.0,94231.0,0.3608]
[1735743959878,0.053166,94228.0,94227.0,0.3608]
[1735743960490,0.15928424,94228.0,94227.0,0.3608]
[1735743960682,0.10511824,94228.0,94227.0,0.413966]
[1735743961983,0.10611824,94228.0,94227.0,0.420966]
[1735743962379,0.001,94228.0,94227.0,0.420966]
[1735743962583,0.10712613,94228.0,94227.0,0.420966]
[1735743963190,0.10712613,94228.0,94227.0,0.423966]
[1735743964388,0.001,94228.0,94227.0,0.423966]
[1735743964589,0.05315,94257.0,94254.0,0.053151]
[1735743964987,0.10612613,94254.0,94250.0,0.3608]
[1735743965382,0.05315,94257.0,94250.0,0.3608]
[1735743965586,0.05315,94257.0,94253.0,0.053152]
[1735743965790,0.05315,94257.0,94250.0,0.3608]
[1735743965791,0.10609854,94256.0,94255.0,0.053151]
[1735743967395,0.10909854,94256.0,94255.0,0.053151]
[1735743968388,0.11609854,94256.0,94255.0,0.054151]
[1735743969391,0.11209854,94256.0,94255.0,0.053151]
[1735743969697,0.11009854,94256.0,94255.0,0.053151]
[1735743970995,0.11409854,94256.0,94255.0,0.054151]
[1735743971489,0.10709854,94256.0,94255.0,0.053151]
[1735743971696,0.11109854,94256.0,94255.0,0.053151]
[1735743972186,0.10709854,94256.0,94255.0,0.053151]
[1735743972393,0.11409854,94256.0,94255.0,0.054151]
[1735743972695,0.11309854,94256.0,94255.0,0.054151]
[1735743972899,0.11609854,94256.0,94255.0,0.054151]
[1735743975303,0.10909854,94256.0,94255.0,0.053151]
[1735743975495,0.11409854,94256.0,94255.0,0.054151]
[1735743975799,0.11109854,94256.0,94255.0,0.054151]
[1735743976004,0.11309854,94256.0,94255.0,0.054151]
[1735743977600,0.11409854,94256.0,94255.0,0.054151]
[1735743978009,0.11409854,94256.0,94255.0,0.001]
[1735743978010,0.11209854,94256.0,94255.0,0.001]
[1735743978302,0.11409854,94256.0,94255.0,0.001]
[1735743978902,0.11409854,94256.0,94255.0,0.054151]
[1735743980709,0.16724854,94256.0,94255.0,0.054151]
[1735743983898,0.16724854,94256.0,94255.0,0.001]
[1735743984104,0.16724854,94256.0,94250.0,0.053153]
[1735743984307,0.053153,94251.0,94250.0,0.053153]
[1735743985003,0.15925323,94251.0,94250.0,0.053153]
[1735743986411,0.15925323,94251.0,94250.0,0.003153]
[1735743986612,0.15925323,94251.0,94249.0,0.02786811]